fUST/lending_fUST_20250722
["ID","MTS","AMOUNT","RATE_DAILY","PERIOD"]
[374006369,1753179033046,-460.0,0.00016861,2]
[374006370,1753179033056,-460.0,0.00016862,2]
[374006371,1753179033067,-500.0,0.00016862,2]
[374006372,1753179033077,-290.94,0.00016862,2]
[374006373,1753179033088,-460.0,0.00016862,2]
[374006374,1753179033098,-497.23,0.00016862,2]
[374006375,1753179033108,-386.60072505,0.00016862,2]
[374006376,1753179033118,-460.0,0.00016862,2]
[374006377,1753179033129,-460.0,0.00016862,2]
[374006378,1753179033138,-694.45,0.00016862,2]
[374006379,1753179033149,-1732.25,0.00016862,2]
[374006380,1753179033159,-460.0,0.00016862,2]
[374006381,1753179033169,-544.45,0.00016862,2]
[374006382,1753179033181,-460.0,0.00016862,2]
[374006383,1753179033191,-460.0,0.00016862,2]
[374006384,1753179033202,-460.0,0.00016864,2]
[374006385,1753179033212,-460.0,0.00016864,2]
[374006386,1753179033222,-460.0,0.00017133,2]
[374006387,1753179033233,-460.0,0.00017134,2]
[374006388,1753179033244,-367.93,0.00017134,2]
[374006389,1753179033255,-617.81,0.00017134,2]
[374006390,1753179033266,-460.0,0.00017134,2]
[374006391,1753179033276,-485.34,0.00017134,2]
[374006392,1753179033286,-460.0,0.00017134,2]
[374006393,1753179033296,-460.0,0.00017134,2]
[374006394,1753179033306,-460.0,0.00017134,2]
[374006395,1753179033316,-460.0,0.00017134,2]
[374006396,1753179033326,-965.64,0.00017134,2]
[374006397,1753179033337,-460.0,0.00017134,2]
[374006398,1753179033347,-460.0,0.00017134,2]
[374006399,1753179033358,-460.0,0.00017134,2]
[374006400,1753179033368,-460.0,0.00017134,2]
[374006401,1753179033378,-460.0,0.00017134,2]
[374006402,1753179033388,-460.0,0.00017134,2]
[374006403,1753179033397,-372.25772257,0.00017134,2]
[374006404,1753179033407,-460.0,0.00017134,2]
[374006405,1753179033417,-460.0,0.00017135,2]
[374006406,1753179033427,-460.0,0.00017135,2]
[374006407,1753179033437,-460.0,0.00017135,2]
[374006408,1753179033447,-460.0,0.00017136,2]
[374006409,1753179033457,-497.23,0.00017136,2]
[374006410,1753179033609,-460.0,0.00017136,2]
[374006411,1753179033620,-694.45,0.00017136,2]
[374006412,1753179033630,-460.0,0.00017136,2]
[374006413,1753179033640,-1732.25,0.00017136,2]
[374006414,1753179033650,-460.0,0.00017136,2]
[374006415,1753179033660,-544.45,0.00017136,2]
[374006416,1753179033670,-460.0,0.00017136,2]
[374006417,1753179033680,-460.0,0.00017138,2]
[374006418,1753179033690,-460.0,0.00017138,2]
[374006419,1753179033700,-460.0,0.00017407,2]
[374006420,1753179033712,-460.0,0.00017408,2]
[374006421,1753179033723,-617.81,0.00017408,2]
[374006422,1753179033734,-460.0,0.00017408,2]
[374006423,1753179033744,-485.34,0.00017408,2]
[374006424,1753179033754,-460.0,0.00017408,2]
[374006425,1753179033764,-460.0,0.00017408,2]
[374006426,1753179033774,-460.0,0.00017408,2]
[374006427,1753179033784,-965.64,0.00017408,2]
[374006428,1753179033794,-460.0,0.00017408,2]
[374006429,1753179033804,-460.0,0.00017408,2]
[374006430,1753179033814,-460.0,0.00017408,2]
[374006431,1753179033824,-460.0,0.00017408,2]
[374006432,1753179033834,-460.0,0.00017408,2]
[374006433,1753179033845,-460.0,0.00017408,2]
[374006434,1753179033855,-460.0,0.00017408,2]
[374006435,1753179033868,-460.0,0.00017409,2]
[374006436,1753179033878,-460.0,0.00017409,2]
[374006437,1753179033888,-460.0,0.0001741,2]
[374006438,1753179033899,-497.23,0.0001741,2]
[374006439,1753179033909,-460.0,0.0001741,2]
[374006440,1753179033919,-694.45,0.0001741,2]
[374006441,1753179033931,-460.0,0.0001741,2]
[374006442,1753179033941,-1732.25,0.0001741,2]
[374006443,1753179033952,-460.0,0.0001741,2]
[374006444,1753179033962,-544.45,0.0001741,2]
[374006445,1753179033972,-460.0,0.0001741,2]
[374006446,1753179033982,-460.0,0.00017412,2]
[374006447,1753179033993,-460.0,0.00017412,2]
[374006448,1753179034003,-336.88861068,0.00017494,2]
[374006449,1753179034013,-500.0,0.00017494,2]
[374006450,1753179034023,-159.5878529,0.00017494,2]
[374006451,1753179034033,-218.86700764,0.00017608,2]
[374006452,1753179034043,-500.0,0.00017661,2]
[374006453,1753179034053,-460.0,0.00017681,2]
[374006454,1753179034064,-460.0,0.00017682,2]
[374006455,1753179034074,-617.81,0.00017682,2]
[374006456,1753179034084,-485.34,0.00017682,2]
[374006457,1753179034094,-460.0,0.00017682,2]
[374006458,1753179034104,-460.0,0.00017682,2]
[374006459,1753179034115,-460.0,0.00017682,2]
[374006460,1753179034125,-965.64,0.00017682,2]
[374006461,1753179034135,-460.0,0.00017682,2]
[374006462,1753179034144,-460.0,0.00017682,2]
[374006463,1753179034154,-460.0,0.00017682,2]
[374006464,1753179034164,-460.0,0.00017682,2]
[374006465,1753179034174,-460.0,0.00017682,2]
[374006466,1753179034184,-460.0,0.00017683,2]
[374006467,1753179034193,-460.0,0.00017684,2]
[374006468,1753179034204,-497.23,0.00017684,2]
[374006469,1753179034213,-460.0,0.00017684,2]
[374006470,1753179034223,-694.45,0.00017684,2]
[374006471,1753179034233,-460.0,0.00017684,2]
[374006472,1753179034242,-1732.25,0.00017684,2]
[374006473,1753179034252,-460.0,0.00017684,2]
[374006474,1753179034261,-544.45,0.00017684,2]
[374006475,1753179034271,-83.83300424,0.00017684,2]
[374006476,1753179034285,-376.16699576,0.00017684,2]
[374006477,1753179034295,-26.80080424,0.00017686,2]
[374006493,1753179038056,-460.0,0.00016862,2]
[374006495,1753179038066,-460.0,0.00017136,2]
[374006496,1753179038076,-460.0,0.0001741,2]
[374006497,1753179038087,-460.0,0.00017684,2]
[374006498,1753179038098,-435.28192389,0.00017686,2]
[374006499,1753179038111,-460.0,0.00017686,2]
[374006500,1753179038123,-460.0,0.00017686,2]
[374006501,1753179038136,-460.0,0.00017686,2]
[374006502,1753179038147,-430.24600537,0.00017686,2]
[374006503,1753179038159,-460.0,0.00017686,2]
[374006504,1753179038169,-460.0,0.00017686,2]
[374006505,1753179038179,-460.0,0.00017686,2]
[374006506,1753179038190,-2906.05818416,0.000179,2]
[374006507,1753179038202,-460.0,0.00017955,2]
[374006508,1753179038212,-617.81,0.00017956,2]
[374006509,1753179038223,-485.34,0.00017956,2]
[374006510,1753179038234,-218.62,0.00017956,2]
[374006511,1753179038244,-460.0,0.00017956,2]
[374006512,1753179038255,-460.0,0.00017956,2]
[374006513,1753179038265,-965.64,0.00017956,2]
[374006514,1753179038275,-460.0,0.00017956,2]
[374006515,1753179038285,-460.0,0.00017956,2]
[374006516,1753179038297,-460.0,0.00017956,2]
[374006517,1753179038309,-159.6644449,0.00017956,2]
[374006518,1753179038319,-460.0,0.00017957,2]
[374006519,1753179038330,-251.40239098,0.00017958,2]
[374006520,1753179038340,-497.23,0.00017958,2]
[374006521,1753179038350,-460.0,0.00017958,2]
[374006522,1753179038361,-318.09244634,0.00017958,2]
[374006523,1753179038374,-376.35755366,0.00017958,2]
[374006524,1753179038385,-460.0,0.00017958,2]
[374006525,1753179038396,-1732.25,0.00017958,2]
[374006526,1753179038407,-460.0,0.00017958,2]
[374006527,1753179038418,-544.45,0.00017958,2]
[374006528,1753179038428,-460.0,0.00017958,2]
[374006529,1753179038440,-460.0,0.0001796,2]
[374006530,1753179038450,-460.0,0.0001796,2]
[374006531,1753179038461,-500.0,0.00018042,2]
[374006532,1753179038472,-500.0,0.00018105,2]
[374006533,1753179038482,-273.76036639,0.00018119,2]
[374006534,1753179038495,-2906.05818395,0.00018176,2]
[374006535,1753179038506,-500.0,0.00018209,2]
[374006536,1753179038516,-460.0,0.00018229,2]
[374006537,1753179038527,-617.81,0.0001823,2]
[374006538,1753179038538,-485.34,0.0001823,2]
[374006539,1753179038549,-460.0,0.0001823,2]
[374006540,1753179038559,-460.0,0.0001823,2]
[374006541,1753179038571,-965.64,0.0001823,2]
[374006542,1753179038581,-460.0,0.0001823,2]
[374006543,1753179038592,-460.0,0.0001823,2]
[374006544,1753179038602,-460.0,0.0001823,2]
[374006545,1753179038613,-460.0,0.00018231,2]
[374006546,1753179038624,-497.23,0.00018232,2]
[374006547,1753179038634,-460.0,0.00018232,2]
[374006548,1753179038645,-694.45,0.00018232,2]
[374006549,1753179038657,-460.0,0.00018232,2]
[374006550,1753179038667,-1732.25,0.00018232,2]
[374006551,1753179038678,-460.0,0.00018232,2]
[374006552,1753179038689,-544.45,0.00018232,2]
[374006553,1753179038699,-460.0,0.00018232,2]
[374006554,1753179038710,-460.0,0.00018234,2]
[374006555,1753179038721,-460.0,0.00018234,2]
[374006556,1753179038731,-420.0,0.00018416,2]
[374006557,1753179038742,-2906.05818395,0.00018452,2]
[374006558,1753179038752,-460.0,0.00018503,2]
[374006559,1753179038763,-617.81,0.00018504,2]
[374006560,1753179038774,-485.34,0.00018504,2]
[374006561,1753179038784,-460.0,0.00018504,2]
[374006562,1753179038795,-460.0,0.00018504,2]
[374006563,1753179038805,-965.64,0.00018504,2]
[374006564,1753179038817,-460.0,0.00018504,2]
[374006565,1753179038828,-460.0,0.00018504,2]
[374006566,1753179038839,-460.0,0.00018504,2]
[374006567,1753179038850,-460.0,0.00018505,2]
[374006568,1753179038860,-497.23,0.00018506,2]
[374006569,1753179038870,-460.0,0.00018506,2]
[374006570,1753179038880,-694.45,0.00018506,2]
[374006571,1753179038890,-460.0,0.00018506,2]
[374006572,1753179038899,-1732.25,0.00018506,2]
[374006573,1753179038910,-34.65302231,0.00018506,2]
[374006574,1753179038931,-425.34697769,0.00018506,2]
[374006575,1753179039107,-299.40441132,0.00018506,2]
[374006627,1753179040404,-245.04558868,0.00018506,2]
[374006629,1753179040414,-460.0,0.00018506,2]
[374006631,1753179040424,-460.0,0.00018508,2]
[374006633,1753179040433,-460.0,0.00018508,2]
[374006635,1753179040444,-1050.1181096,0.00018728,2]
[374006637,1753179040456,-1338.7551734,0.00018728,2]
[374006639,1753179040467,-517.18490095,0.00018728,2]
[374006641,1753179040477,-460.0,0.00018777,2]
[374006643,1753179040487,-617.81,0.00018778,2]
[374006645,1753179040500,-485.34,0.00018778,2]
[374006647,1753179040510,-183.91630104,0.00018778,2]
[374006649,1753179040521,-460.0,0.00018778,2]
[374006651,1753179040530,-965.64,0.00018778,2]
[374006653,1753179040542,-460.0,0.00018778,2]
[374006656,1753179040552,-460.0,0.00018778,2]
[374006658,1753179040561,-460.0,0.00018778,2]
[374006659,1753179040572,-460.0,0.00018779,2]
[374006661,1753179040582,-497.23,0.0001878,2]
[374006663,1753179040592,-460.0,0.0001878,2]
[374006665,1753179040601,-694.45,0.0001878,2]
[374006667,1753179040611,-160.0976356,0.0001878,2]
[374006669,1753179040621,-1732.25,0.0001878,2]
[374006671,1753179040630,-460.0,0.0001878,2]
[374006673,1753179040640,-544.45,0.0001878,2]
[374006675,1753179040650,-460.0,0.0001878,2]
[374006677,1753179040659,-460.0,0.00018782,2]
[374006679,1753179040669,-460.0,0.00018782,2]
[374006681,1753179040679,-160.0,0.00018865,2]
[374006684,1753179040689,-218.87789923,0.00018877,3]
[374006685,1753179040698,-800.0,0.0001888,2]
[374006687,1753179040708,-817.74807594,0.000189,2]
[374006689,1753179040718,-302.96970909,0.000189,2]
[374006691,1753179040727,-160.0,0.00018951,2]
[374006693,1753179040736,-12619.94447631,0.00018951,2]
[374006695,1753179040746,-214.6393183,0.00018951,2]
[374006697,1753179040756,-160.0,0.00018951,2]
[374006699,1753179040765,-160.0,0.00018951,2]
[374006701,1753179040776,-839.90542673,0.00018951,2]
[374006703,1753179040785,-215.80012421,0.00018951,2]
[374006705,1753179040796,-231.06963584,0.00018951,2]
[374006707,1753179040806,-526.07605158,0.00018951,2]
[374006709,1753179040815,-476.60259688,0.00018951,2]
[374006711,1753179040826,-160.0,0.00018954,2]
[374006713,1753179040835,-160.0,0.00018954,2]
[374006716,1753179040846,-2906.05818395,0.00019003,2]
[374006718,1753179040856,-460.0,0.00019051,2]
[374006720,1753179040866,-617.81,0.00019052,2]
[374006722,1753179040875,-485.34,0.00019052,2]
[374006724,1753179040885,-460.0,0.00019052,2]
[374006726,1753179040896,-965.64,0.00019052,2]
[374006728,1753179040906,-460.0,0.00019052,2]
[374006730,1753179040916,-460.0,0.00019052,2]
[374006732,1753179040926,-497.23,0.00019054,2]
[374006734,1753179040936,-460.0,0.00019054,2]
[374006736,1753179040946,-694.45,0.00019054,2]
[374006738,1753179040955,-1732.25,0.00019054,2]
[374006740,1753179040966,-460.0,0.00019054,2]
[374006742,1753179040976,-544.45,0.00019054,2]
[374006744,1753179040986,-460.0,0.00019054,2]
[374006746,1753179040996,-460.0,0.00019056,2]
[374006748,1753179041005,-460.0,0.00019056,2]
[374006750,1753179041014,-302.96970909,0.00019089,2]
[374006751,1753179041024,-174.569676,0.00019178,2]
[374006753,1753179041033,-302.78799992,0.00019278,2]
[374006756,1753179041046,-2906.05818395,0.00019279,2]
[374006758,1753179041056,-460.0,0.00019325,2]
[374006760,1753179041065,-617.81,0.00019326,2]
[374006762,1753179041075,-485.34,0.00019326,2]
[374006764,1753179041084,-460.0,0.00019326,2]
[374006766,1753179041093,-965.64,0.00019326,2]
[374006768,1753179041103,-460.0,0.00019326,2]
[374006770,1753179041112,-460.0,0.00019326,2]
[374006772,1753179041121,-497.23,0.00019328,2]
[374006774,1753179041130,-460.0,0.00019328,2]
[374006776,1753179041139,-694.45,0.00019328,2]
[374006778,1753179041148,-83.23232879,0.00019328,2]
[374007048,1753179043402,-1649.01767121,0.00019328,2]
[374007050,1753179043412,-460.0,0.00019328,2]
[374007052,1753179043422,-544.45,0.00019328,2]
[374007054,1753179043432,-460.0,0.00019328,2]
[374007056,1753179043446,-460.0,0.0001933,2]
[374007058,1753179043455,-460.0,0.0001933,2]
[374007060,1753179043465,-180.0,0.00019413,2]
[374007062,1753179043476,-2906.05818395,0.00019555,2]
[374007064,1753179043486,-460.0,0.00019599,2]
[374007066,1753179043496,-500.0,0.00019599,2]
[374007068,1753179043509,-500.0,0.00019599,2]
[374007070,1753179043519,-500.0,0.00019599,2]
[374007072,1753179043529,-500.0,0.00019599,2]
[374007074,1753179043539,-611.82383478,0.00019599,2]
[374007076,1753179043550,-500.0,0.00019599,2]
[374007078,1753179043559,-500.0,0.00019599,2]
[374007080,1753179043569,-500.0,0.00019599,2]
[374007082,1753179043581,-500.0,0.00019599,2]
[374007084,1753179043591,-272.79349998,0.00019599,2]
[374007086,1753179043600,-500.0,0.00019599,2]
[374007088,1753179043610,-500.0,0.00019599,2]
[374007090,1753179043620,-500.0,0.00019599,2]
[374007092,1753179043629,-500.0,0.00019599,2]
[374007094,1753179043639,-500.0,0.00019599,2]
[374007096,1753179043648,-500.0,0.00019599,2]
[374007098,1753179043657,-500.0,0.00019599,2]
[374007100,1753179043667,-500.0,0.00019599,2]
[374007102,1753179043677,-500.0,0.00019599,2]
[374007104,1753179043686,-500.0,0.00019599,2]
[374007106,1753179043697,-500.0,0.00019599,2]
[374007107,1753179043707,-500.0,0.00019599,2]
[374007108,1753179043716,-500.0,0.00019599,2]
[374007109,1753179043725,-500.0,0.00019599,2]
[374007110,1753179043734,-500.0,0.00019599,2]
[374007111,1753179043744,-500.0,0.00019599,2]
[374007112,1753179043753,-500.0,0.00019599,2]
[374007113,1753179043763,-498.06182842,0.00019599,2]
[374007114,1753179043772,-500.0,0.00019599,2]
[374007115,1753179043781,-500.0,0.00019599,2]
[374007116,1753179043790,-500.0,0.00019599,2]
[374007117,1753179043799,-500.0,0.00019599,2]
[374007118,1753179043809,-572.11441338,0.00019599,2]
[374007119,1753179043817,-500.0,0.00019599,2]
[374007120,1753179043827,-500.0,0.00019599,2]
[374007121,1753179043836,-500.0,0.00019599,2]
[374007122,1753179043845,-500.0,0.00019599,2]
[374007123,1753179043854,-500.0,0.00019599,2]
[374007124,1753179043864,-500.0,0.00019599,2]
[374007125,1753179043873,-267.45595165,0.00019599,2]
[374007126,1753179043882,-500.0,0.00019599,2]
[374007127,1753179043891,-500.0,0.00019599,2]
[374007128,1753179043901,-500.0,0.00019599,2]
[374007130,1753179043912,-500.0,0.00019599,2]
[374007132,1753179043922,-500.0,0.00019599,2]
[374007133,1753179043931,-500.0,0.00019599,2]
[374007135,1753179043941,-500.0,0.00019599,2]
[374007137,1753179043950,-500.0,0.00019599,2]
[374007139,1753179043960,-500.0,0.00019599,2]
[374007141,1753179043970,-500.0,0.00019599,2]
[374007143,1753179043980,-500.0,0.00019599,2]
[374007145,1753179043989,-500.0,0.00019599,2]
[374007147,1753179043999,-500.0,0.00019599,2]
[374007149,1753179044012,-500.0,0.00019599,2]
[374007151,1753179044022,-432.99449517,0.00019599,2]
[374007153,1753179044032,-500.0,0.00019599,2]
[374007155,1753179044042,-500.0,0.00019599,2]
[374007157,1753179044052,-500.0,0.00019599,2]
[374007159,1753179044061,-500.0,0.00019599,2]
[374007161,1753179044071,-500.0,0.00019599,2]
[374007163,1753179044083,-379.39795184,0.00019599,2]
[374007165,1753179044099,-120.60204816,0.00019599,2]
[374007167,1753179044108,-162.42958346,0.00019599,2]
[374007169,1753179044119,-500.0,0.00019599,2]
[374007171,1753179044129,-500.0,0.00019599,2]
[374007173,1753179044139,-222.50941986,0.00019599,2]
[374007175,1753179044149,-237.71430381,0.000196,2]
[374007398,1753179046258,-380.09569619,0.000196,2]
[374007400,1753179046268,-485.34,0.000196,2]
[374007402,1753179046278,-478.29,0.000196,2]
[374007404,1753179046288,-965.64,0.000196,2]
[374007406,1753179046298,-290.88988236,0.000196,2]
[374007407,1753179046312,-169.11011764,0.000196,2]
[374007408,1753179046322,-460.0,0.000196,2]
[374007409,1753179046332,-497.23,0.00019602,2]
[374007410,1753179046342,-460.0,0.00019602,2]
[374007411,1753179046351,-694.45,0.00019602,2]
[374007412,1753179046362,-1732.25,0.00019602,2]
[374007414,1753179046371,-554.53531545,0.00019602,2]
[374007416,1753179046381,-544.45,0.00019602,2]
[374007418,1753179046391,-460.0,0.00019602,2]
[374007420,1753179046401,-460.0,0.00019604,2]
[374007422,1753179046410,-460.0,0.00019604,2]
[374007424,1753179046419,-2906.05818395,0.00019831,2]
[374007427,1753179046432,-460.0,0.00019873,2]
[374007429,1753179046442,-617.81,0.00019874,2]
[374007431,1753179046452,-485.34,0.00019874,2]
[374007433,1753179046461,-965.64,0.00019874,2]
[374007435,1753179046472,-218.69098867,0.00019874,2]
[374007437,1753179046481,-460.0,0.00019874,2]
[374007439,1753179046491,-497.23,0.00019876,2]
[374007441,1753179046504,-460.0,0.00019876,2]
[374007443,1753179046513,-694.45,0.00019876,2]
[374007445,1753179046523,-1732.25,0.00019876,2]
[374007447,1753179046534,-544.45,0.00019876,2]
[374007449,1753179046544,-460.0,0.00019876,2]
[374007451,1753179046554,-460.0,0.00019878,2]
[374007453,1753179046563,-460.0,0.00019878,2]
[374007455,1753179046575,-2906.05818395,0.00020107,2]
[374007457,1753179046585,-587.0,0.00020118,2]
[374007459,1753179046594,-460.0,0.00020147,2]
[374007461,1753179046604,-617.81,0.00020148,2]
[374007463,1753179046613,-485.34,0.00020148,2]
[374007465,1753179046624,-965.64,0.00020148,2]
[374007467,1753179046634,-460.0,0.00020148,2]
[374007469,1753179046643,-497.23,0.0002015,2]
[374007471,1753179046653,-460.0,0.0002015,2]
[374007473,1753179046663,-694.45,0.0002015,2]
[374007475,1753179046672,-1732.25,0.0002015,2]
[374007477,1753179046681,-544.45,0.0002015,2]
[374007479,1753179046692,-460.0,0.0002015,2]
[374007482,1753179046702,-460.0,0.00020152,2]
[374007484,1753179046711,-460.0,0.00020152,2]
[374007486,1753179046722,-507.58685935,0.00020167,2]
[374007488,1753179046732,-500.0,0.00020167,2]
[374007489,1753179046741,-500.0,0.00020167,2]
[374007491,1753179046750,-2906.05818395,0.00020383,3]
[374007494,1753179046760,-460.0,0.00020421,2]
[374007496,1753179046769,-617.81,0.00020422,2]
[374007497,1753179046778,-485.34,0.00020422,2]
[374007499,1753179046788,-965.64,0.00020422,2]
[374007502,1753179046797,-464.94126512,0.00020422,2]
[374007504,1753179046807,-497.23,0.00020424,2]
[374007506,1753179046816,-460.0,0.00020424,2]
[374007508,1753179046825,-694.45,0.00020424,2]
[374007510,1753179046835,-1732.25,0.00020424,2]
[374007512,1753179046844,-544.45,0.00020424,2]
[374007514,1753179046854,-460.0,0.00020424,2]
[374007516,1753179046864,-460.0,0.00020426,2]
[374007518,1753179046874,-460.0,0.00020426,2]
[374007520,1753179046883,-560.37646746,0.00020596,2]
[374007522,1753179046892,-500.0,0.00020629,2]
[374007524,1753179046902,-2906.05818395,0.00020659,3]
[374007526,1753179046912,-460.0,0.00020695,2]
[374007528,1753179046922,-617.81,0.00020696,2]
[374007530,1753179046932,-485.34,0.00020696,2]
[374007532,1753179046943,-965.64,0.00020696,2]
[374007534,1753179046953,-497.23,0.00020698,2]
[374007536,1753179046962,-457.72,0.00020698,2]
[374007538,1753179046972,-694.45,0.00020698,2]
[374007540,1753179046981,-1732.25,0.00020698,2]
[374007542,1753179046992,-544.45,0.00020698,2]
[374007544,1753179047003,-460.0,0.00020698,2]
[374007546,1753179047013,-460.0,0.000207,2]
[374007549,1753179047023,-460.0,0.000207,2]
[374007551,1753179047033,-649.91416204,0.00020715,2]
[374007553,1753179047043,-1000.0,0.00020715,2]
[374007555,1753179047052,-797.594,0.00020715,2]
[374007557,1753179047062,-500.0,0.0002074,2]
[374007558,1753179047071,-500.0,0.0002074,2]
[374007561,1753179047081,-500.0,0.0002074,2]
[374007562,1753179047091,-512.46627473,0.0002074,2]
[374007565,1753179047100,-501.68174994,0.0002074,2]
[374007566,1753179047110,-500.0,0.0002074,2]
[374007569,1753179047120,-500.0,0.00020745,2]
[374007571,1753179047129,-2906.05818395,0.00020934,4]
[374007573,1753179047139,-460.0,0.00020969,2]
[374007575,1753179047149,-617.81,0.0002097,2]
[374007577,1753179047158,-485.34,0.0002097,2]
[374007579,1753179047168,-965.64,0.0002097,2]
[374007581,1753179047177,-497.23,0.00020972,2]
[374007583,1753179047187,-694.45,0.00020972,2]
[374007585,1753179047196,-1732.25,0.00020972,2]
[374007587,1753179047206,-544.45,0.00020972,2]
[374007589,1753179047216,-460.0,0.00020972,2]
[374007591,1753179047225,-460.0,0.00020974,2]
[374007593,1753179047235,-460.0,0.00020974,2]
[374007595,1753179047244,-500.0,0.00021177,2]
[374007597,1753179047254,-215.0738,0.00021188,2]
[374007599,1753179047264,-151.0,0.00021188,2]
[374007601,1753179047274,-2906.05818395,0.0002121,4]
[374007603,1753179047284,-460.0,0.00021243,2]
[374007605,1753179047294,-617.81,0.00021244,2]
[374007607,1753179047303,-485.34,0.00021244,2]
[374007609,1753179047312,-965.64,0.00021244,2]
[374007611,1753179047322,-497.23,0.00021246,2]
[374007613,1753179047331,-694.45,0.00021246,2]
[374007614,1753179047341,-1732.25,0.00021246,2]
[374007615,1753179047351,-544.45,0.00021246,2]
[374007616,1753179047361,-460.0,0.00021246,2]
[374007617,1753179047370,-460.0,0.00021248,2]
[374007618,1753179047380,-460.0,0.00021248,2]
[374007619,1753179047389,-151.0,0.00021249,2]
[374007620,1753179047398,-151.0,0.00021249,2]
[374007621,1753179047407,-151.0,0.00021249,2]
[374007622,1753179047417,-1500.0,0.00021263,2]
[374007623,1753179047425,-1000.0,0.00021288,2]
[374007624,1753179047434,-500.0,0.00021288,2]
[374007625,1753179047444,-500.0,0.00021288,2]
[374007626,1753179047453,-500.0,0.00021288,2]
[374007627,1753179047462,-500.0,0.00021293,2]
[374007628,1753179047472,-12159.45462487,0.00021418,2]
[374007629,1753179047481,-2906.05818395,0.00021486,5]
[374007630,1753179047491,-460.0,0.00021517,2]
[374007631,1753179047504,-617.81,0.00021518,2]
[374007632,1753179047513,-485.34,0.00021518,2]
[374007633,1753179047523,-965.64,0.00021518,2]
[374007634,1753179047533,-151.0,0.0002152,2]
[374007635,1753179047543,-497.23,0.0002152,2]
[374007636,1753179047552,-694.45,0.0002152,2]
[374007637,1753179047562,-1732.25,0.0002152,2]
[374007638,1753179047572,-544.45,0.0002152,2]
[374007639,1753179047582,-460.0,0.0002152,2]
[374007640,1753179047593,-460.0,0.00021522,2]
[374007641,1753179047602,-460.0,0.00021522,2]
[374007642,1753179047611,-560.37646743,0.00021585,2]
[374007643,1753179047621,-2906.05818395,0.00021762,5]
[374007644,1753179047630,-460.0,0.00021791,2]
[374007645,1753179047640,-617.81,0.00021792,2]
[374007646,1753179047650,-485.34,0.00021792,2]
[374007647,1753179047659,-965.64,0.00021792,2]
[374007649,1753179047670,-497.23,0.00021794,2]
[374007650,1753179047680,-694.45,0.00021794,2]
[374007651,1753179047689,-1732.25,0.00021794,2]
[374007652,1753179047699,-544.45,0.00021794,2]
[374007653,1753179047710,-460.0,0.00021794,2]
[374007654,1753179047720,-154.78,0.00021796,2]
[374007655,1753179047730,-460.0,0.00021796,2]
[374007656,1753179047739,-1000.0,0.000218,2]
[374007657,1753179047749,-513.36135234,0.00021811,2]
[374007658,1753179047759,-500.0,0.00021836,2]
[374007659,1753179047769,-179.58591415,0.00021918,2]
[374007660,1753179047779,-317.1217472,0.00021973,2]
[374007661,1753179047789,-823.0,0.00021976,2]